Cogmind - Beta 15 X1 @@@ ROGUE MODE // 2024.11.16 @ 16:43:22 Player: trisiak Result: Destroyed by D-53 Grenadier with Mini Grenade Launcher Performance ------------- Evolutions (0) 0 Regions Visited (4) 800 Robots Destroyed (21) 105 Value Destroyed (486) 486 Prototype IDs (0) 0 Alien Tech Used (0) 0 Bonus (-11) -11 TOTAL SCORE: 1380 Bonus ------- Friendly Fire -11 Cogmind --------- Core Integrity 0/250 Matter 243/300 Energy 76/100 System Corruption 4% Temperature Cool (0) Movement Treading (320) Ox2 Location -9/Mines Parts ------- > --- POWER (1) -------- (None) > --- PROPULSION (2) --- Light Treads Light Treads > --- UTILITY (2) ------ Huge Storage Unit Seismic Detector > --- WEAPON (2) ------- (None) > --- INVENTORY (25) --- Light Treads Light Treads Light Treads Light Treads Light Treads Wheel Small Storage Unit Large Storage Unit Large Storage Unit High-capacity Storage Unit Large Battery (200) Large Matter Pod (150) Structural Scanner Visual Processing Unit Sensor Array Signal Interpreter Light Cannon Rocket Launcher Datajack Mining Laser Peak State ------------ > --- POWER ------------ Light Nuclear Core > --- PROPULSION ------- Light Treads Light Treads > --- UTILITY ---------- Huge Storage Unit Small Battery > --- WEAPON ----------- Assault Rifle Assault Rifle > --- INVENTORY -------- Light Treads Light Treads Light Treads Light Treads Light Treads Light Treads Wheel Compact Wheel Small Storage Unit Large Storage Unit Large Storage Unit High-capacity Storage Unit Large Battery Large Matter Pod Structural Scanner Visual Processing Unit Sensor Array Signal Interpreter Seismic Detector Datajack Mining Laser [Rating: 11] Favorites ----------- Power Light Nuclear Core Engine Light Ion Engine Power Core Light Nuclear Core Propulsion Light Treads Treads Light Treads Leg Aluminum Leg Wheel Compact Wheel Utility Huge Storage Unit Device Seismic Detector Storage Huge Storage Unit Protection Backup Plating III Weapon Assault Rifle Energy Gun Small Laser Ballistic Gun Assault Rifle Launcher Grenade Launcher Special Melee Weapon Datajack Build | -11 -10 -10 -10 -9 ------- Run | Yrd Mat Min Exi Min Slots Evolved . | . . . . . Power . | . . . . . Propulsion . | . . . . . Utility . | . . . . . Weapon . | . . . . . Parts Attached 21 | 1 13 3 1 3 Power 2 | . 1 1 . . Engine 1 | . 1 . . . Core 1 | . . 1 . . Reactor . | . . . . . Propulsion 5 | . 2 . . 3 Treads 4 | . 2 . . 2 Leg . | . . . . . Wheel 1 | . . . . 1 Hover . | . . . . . Flight . | . . . . . Utility 8 | 1 5 1 1 . Device 1 | 1 . . . . Storage 6 | . 4 1 1 . Processor . | . . . . . Hackware . | . . . . . Protection 1 | . 1 . . . Artifact . | . . . . . Weapon 6 | . 5 1 . . Energy Gun 1 | . 1 . . . Energy Cannon . | . . . . . Ballistic Gun 3 | . 3 . . . Ballistic Cannon . | . . . . . Launcher 1 | . 1 . . . Special Weapon . | . . . . . Impact Weapon . | . . . . . Slashing Weapon . | . . . . . Piercing Weapon . | . . . . . Special Melee Weapon 1 | . . 1 . . Unidentified Prototypes . | . . . . . Parts Lost 9 | . 3 1 . 5 Power 3 | . 2 . . 1 Propulsion 2 | . . . . 2 Utility 1 | . . 1 . . Weapon 3 | . 1 . . 2 Highest Loss Streak 5 | . 2 1 . 5 To Critical Strikes . | . . . . . Average Backups 16 | 6 10 20 21 21 Power . | 1 . . . . Propulsion 7 | 4 6 7 8 8 Utility 7 | . 2 10 11 10 Weapon . | 1 . 1 1 2 Tool/Special . | . . . . . Unused Backups 15 | . 3 . . 12 Power 1 | . 1 . . . Propulsion 6 | . 1 . . 5 Utility 6 | . . . . 6 Weapon 2 | . 1 . . 1 Tool/Special . | . . . . . Average Slot Usage (%) 89 | . 92 84 85 97 Engine 2 | . 7 . . . Core 7 | . . 8 14 13 Treads 27 | . 26 28 28 27 Device 6 | . 9 5 . 12 Storage 14 | . 14 14 14 14 Protection 1 | . 4 . . . Energy Gun 1 | . 3 . . . Ballistic Gun 26 | . 23 27 28 27 Peak Build Rating 11 | 7 10 10 11 11 Average Rating 9 | 6 7 9 10 10 On Entrance 8 | 6 7 8 10 10 Naked Turns . | . . . . . Heaviest Build 90 | 12 46 89 89 90 Greatest Support 40 | 20 40 40 40 40 Greatest Overweight (x) 5 | . 1 2 2 5 Average Overweight (x) 1 | . . 1 2 2 Largest Inventory Capacity 25 | 8 20 25 25 25 Average Capacity 21 | 8 14 24 25 25 Most Carried 22 | 7 17 21 22 22 Average Carried 16 | 6 10 20 21 21 Final Capacity 25 | 8 20 25 25 25 Final Carried 21 | 7 17 21 21 20 Class Distribution -------------------- 100% | Mutant Dominant Class ---------------- Mutant | -10/Materials Mutant | -10/Mines Mutant | -10/Exiles Mutant | -9/Mines Resources | -11 -10 -10 -10 -9 ----------- Run | Yrd Mat Min Exi Min Matter Collected 800 | 222 337 187 . 54 Remotely . | . . . . . Salvage Created 679 | 80 512 87 . . Parts 40 | 7 27 6 . . Haulers Intercepted 2 | . 2 . . . Recyclers Shooed 1 | . 1 . . . Parts Field Recycled . | . . . . . Retrieved Matter . | . . . . . Parts Self-Destructed . | . . . . . Prevented . | . . . . . Kills | -11 -10 -10 -10 -9 ------- Run | Yrd Mat Min Exi Min Combat Hostiles Destroyed 13 | . 11 2 . . Guns 6 | . 4 2 . . AOE 7 | . 7 . . . Classes Destroyed 7 | 2 4 1 . . Builder 1 | . . 1 . . Tunneler 1 | 1 . . . . Hauler 2 | . 2 . . . Recycler 3 | 1 2 . . . Watcher 1 | . 1 . . . Swarmer 3 | . 3 . . . Grunt 10 | . 8 2 . . Best Kill Streak 5 | 2 5 2 . . Combat Bots Only 5 | . 5 2 . . Max Kills in Single Turn 2 | 1 2 1 . . Gunslinging . | . . . . . Exploded 2 | . 2 . . . Melee . | . . . . . Uniques/NPCs Destroyed . | . . . . . Combat | -11 -10 -10 -10 -9 -------- Run | Yrd Mat Min Exi Min Hostile Shots Fired 83 | . 40 17 . 26 Missed 27 | . 13 5 . 9 Damage Taken 1216 | . 484 163 . 569 Core 260 | . 106 11 . 143 Absorbed by Shields . | . . . . . Core Remaining (%) 100 | 100 . . . . Volleys Fired 50 | 3 39 8 . . Largest 2 | 2 2 2 . . Hottest 60 | 40 60 40 . . Shots Fired 94 | 6 70 16 2 . Gun 86 | 6 62 16 2 . Cannon . | . . . . . Launcher 8 | . 8 . . . Special . | . . . . . Kinetic 84 | 6 60 16 2 . Thermal 2 | . 2 . . . Explosive 8 | . 8 . . . Electromagnetic . | . . . . . Robot Hit Streak 11 | 3 7 11 2 . Robot Miss Streak 3 | 1 3 1 . . Penetration Max . | . . . . . Secondary Targets . | . . . . . Shots Hit Robots 52 | 3 36 12 1 . Core Hits 34 | 3 26 5 . . Critical Kills . | . . . . . Critical Parts Destroyed . | . . . . . Critical Strikes . | . . . . . Melee Attacks . | . . . . . Impact . | . . . . . Slashing . | . . . . . Piercing . | . . . . . Sneak Attacks . | . . . . . Combat Hostiles . | . . . . . Follow-up Attacks . | . . . . . Damage Inflicted 1129 | 31 915 157 11 15 Guns 532 | 31 340 150 11 . Cannons . | . . . . . Explosions 524 | . 524 . . . Melee . | . . . . . Ramming 73 | . 51 7 . 15 Kinetic 510 | 31 318 150 11 . Thermal 22 | . 22 . . . Explosive 524 | . 524 . . . Electromagnetic . | . . . . . Impact . | . . . . . Slashing . | . . . . . Piercing . | . . . . . Highest Corruption 4 | . 4 4 4 4 Average Corruption 3 | . 3 4 4 4 Corruption Purged . | . . . . . Corruption Blocked . | . . . . . Effects 97 | . 19 28 38 12 Message Errors 33 | . 6 9 16 2 Matter Fused 22 | . 6 6 5 5 Heat Flow Errors 9 | . . 2 5 2 Energy Discharges 9 | . 2 3 3 1 Parts Fused 2 | . 1 . 1 . Data Loss (minor) 10 | . 3 4 2 1 Data Loss (major) 6 | . . 2 4 . Misfires 3 | . 1 . 2 . Alerts 3 | . . 2 . 1 Overload Shots . | . . . . . Overflow Damage 24 | . 24 . . . Projectiles . | . . . . . Explosions 24 | . 24 . . . Melee . | . . . . . Knockbacks 2 | . 2 . . . Impact 2 | . 2 . . . Kinetic . | . . . . . Secondary . | . . . . . Self-Inflicted Damage 194 | . 194 . . . Shots 7 | . 7 . . . Rammed 15 | . 13 1 . 1 Targets Rammed 18 | . 15 2 . 1 Kicked . | . . . . . Crushed 3 | . 2 1 . . Highest Temperature 244 | . 18 162 244 204 Average Temperature 70 | . 7 66 100 90 Received Heat Transfer 286 | . 153 93 . 40 Siege Activations . | . . . . . Martial Activations . | . . . . . Shielding Activations . | . . . . . Robots Disrupted . | . . . . . Combat Hostiles . | . . . . . Robots Corrupted . | . . . . . Combat Hostiles . | . . . . . Parts Fried . | . . . . . Impact Corruptions . | . . . . . Robots Melted . | . . . . . Combat Hostiles . | . . . . . Parts Melted . | . . . . . Heat Transferred 50 | . 50 . . . Parts Sabotaged . | . . . . . Parts Stolen . | . . . . . Parts Stripped . | . . . . . Power Chain Reactions 1 | . 1 . . . Alert | -11 -10 -10 -10 -9 ------- Run | Yrd Mat Min Exi Min Maximum Alert Level . | . . . . . Low Security (%) 100 | 100 100 100 . 100 Level 1 . | . . . . . Level 2 . | . . . . . Level 3 . | . . . . . Level 4 . | . . . . . Level 5 . | . . . . . High Security . | . . . . . Max Security . | . . . . . Peak Influence 174 | 10 174 42 . . Initial . | . . . . . Average 24 | 3 45 2 . . Influence Increases 562 | 10 497 55 . . Destroy 0b10 Robot/C 260 | . 220 40 . . Destroy 0b10 Robot/NC 40 | 10 25 5 . . Destroy Leader 66 | . 56 10 . . Successful Hack 71 | . 71 . . . Disable Machine 60 | . 60 . . . Destroy Structure 35 | . 35 . . . Lose Combat Pursuer 30 | . 30 . . . Influence Decreases 562 | 10 497 55 . . Time Decay 532 | 10 467 55 . . Lost Part 30 | . 30 . . . Squads Dispatched 4 | . 4 . . . Investigation 3 | . 3 . . . Extermination . | . . . . . Reinforcement 1 | . 1 . . . Assault . | . . . . . Garrison . | . . . . . Intercept . | . . . . . Searches Triggered . | . . . . . Construction Impeded . | . . . . . Haulers Reinforced . | . . . . . Active Scanning Responses . | . . . . . Cargo Convoy Interrupts . | . . . . . Stealth | -11 -10 -10 -10 -9 --------- Run | Yrd Mat Min Exi Min Distress Signals 2 | . 2 . . . Communications Jammed . | . . . . . Distress Signals . | . . . . . Times Spotted 31 | . 21 2 . 8 Peak Tracking Total 6 | . 6 2 . 6 Tactical Retreats 2 | . 2 . . . Traps | -11 -10 -10 -10 -9 ------- Run | Yrd Mat Min Exi Min Traps Triggered 3 | . 3 . . . Indirectly . | . . . . . Trap Hack Attempts . | . . . . . Triggered . | . . . . . Disarmed . | . . . . . Reprogrammed . | . . . . . Reused . | . . . . . Traps Extracted . | . . . . . Installed . | . . . . . Triggered . | . . . . . Machines | -11 -10 -10 -10 -9 ---------- Run | Yrd Mat Min Exi Min Machines Disabled 4 | . 4 . . . Max in Single Turn 3 | . 3 . . . Machines Repaired . | . . . . . Machines Dismantled . | . . . . . Machines Sabotaged . | . . . . . Overloaded Fab Kills . | . . . . . Hacking | -11 -10 -10 -10 -9 --------- Run | Yrd Mat Min Exi Min Machines Accessed 14 | . 10 . 4 . Terminals 7 | . 7 . . . Fabricators . | . . . . . Repair Stations 1 | . 1 . . . Recycling Units 2 | . 2 . . . Scanalyzers . | . . . . . Garrison Access . | . . . . . Total Hacks 34 | . 30 . 4 . Successful 19 | . 15 . 4 . Failed 15 | . 15 . . . Catastrophic 1 | . 1 . . . Database Lockouts . | . . . . . Manual 11 | . 10 . 1 . Terminals 22 | . 22 . . . Fabricators . | . . . . . Repair Stations 3 | . 3 . . . Recycling Units 5 | . 5 . . . Scanalyzers . | . . . . . Garrison Access . | . . . . . Terminal Hacks 11 | . 7 . 4 . Record 4 | . . . 4 . Robot Analysis 2 | . 2 . . . Locate Traps 2 | . 2 . . . Hauler Manifests 2 | . 2 . . . Zone Layout 1 | . 1 . . . Fabricator Hacks . | . . . . . Repair Station Hacks 2 | . 2 . . . Scan Component 2 | . 2 . . . Recycling Unit Hacks 2 | . 2 . . . Retrieve Components 2 | . 2 . . . Scanalyzer . | . . . . . Garrison Access Hacks . | . . . . . Unauthorized Hacks 4 | . 4 . . . Terminals 4 | . 4 . . . Botnet 4 | . 4 . . . Fabricators . | . . . . . Repair Stations . | . . . . . Recycling Units . | . . . . . Scanalyzers . | . . . . . Garrison Access . | . . . . . Data Cores Recovered . | . . . . . Used . | . . . . . Hacking Detections 10 | . 10 . . . Full Trace Events 4 | . 4 . . . Feedback Events 1 | . 1 . . . Corruption 1 | . 1 . . . Feedback Blocked . | . . . . . Robot Schematics Acquired . | . . . . . Robots Built . | . . . . . Authchips . | . . . . . Time . | . . . . . Total Robot Build Rating . | . . . . . Part Schematics Acquired . | . . . . . Parts Built . | . . . . . Authchips . | . . . . . Time . | . . . . . Total Part Build Rating . | . . . . . Parts Repaired . | . . . . . Time . | . . . . . Parts Recycled . | . . . . . Recycled Matter . | . . . . . Retrieved Matter . | . . . . . Retrieved Components 10 | . 10 . . . Parts Scanalyzed . | . . . . . Part Schematics Acquired . | . . . . . Parts Damaged . | . . . . . Bothacking | -11 -10 -10 -10 -9 ------------ Run | Yrd Mat Min Exi Min Used RIF Installer . | . . . . . Robots Hacked . | . . . . . Non-combat . | . . . . . Combat . | . . . . . Robot Hacks Applied . | . . . . . Relay Couplers Released . | . . . . . Fabnet Peak Effective % . | . . . . . Robots Rewired . | . . . . . Allies Hacked . | . . . . . Hacks Repelled . | . . . . . Allies | -11 -10 -10 -10 -9 -------- Run | Yrd Mat Min Exi Min Total Allies 2 | . . 2 . . Largest Group 2 | . . 2 2 . Highest-Rated Group 46 | . . 46 46 . Highest-Rated Ally 31 | . . 31 31 . Total Orders . | . . . . . Ally Attacks . | . . . . . Total Damage . | . . . . . Kills . | . . . . . Allies Corrupted . | . . . . . Allies Melted . | . . . . . Intel | -11 -10 -10 -10 -9 ------- Run | Yrd Mat Min Exi Min Active Infowar (turns) 2312 | 18 1244 417 . 633 Seismic 2312 | 18 1244 417 . 633 Robot Analysis Total 2 | . 2 . . . Derelict Logs Recovered 1 | . . 1 . . Drone Launches . | . . . . . Drone Recoveries . | . . . . . Exploration | -11 -10 -10 -10 -9 ------------- Run | Yrd Mat Min Exi Min Turns Passed 5146 | 35 1916 1078 1435 682 Spaces Moved 1929 | 21 958 318 448 184 Core . | . . . . . Treads 1830 | . 890 318 448 174 Legs 89 | 21 68 . . . Wheels 10 | . . . . 10 Hover . | . . . . . Flight . | . . . . . Fastest Speed 120 | 120 120 240 320 175 Average Speed 244 | 120 174 315 320 312 Slowest Speed 320 | 120 240 320 320 320 Overloaded Moves . | . . . . . Propulsion Burnouts . | . . . . . Robots Hopped . | . . . . . Cave-ins Triggered . | . . . . . Exploration Rate (%) 61 | 3 96 82 91 36 Regions Visited 4 Branch Regions 3 Pre-discovered Areas 1 | . . . . 1 Known Exits Taken . | . . . . . Unknown Exits Taken 4 | 1 1 1 1 . Scrap Searched 3 | . . 2 . 1 Spaces Dug . | . . . . . Terrain Destroyed 40 | . 40 . . . Melee . | . . . . . Projectile . | . . . . . AOE 40 | . 40 . . . Terrain Rammed . | . . . . . Walls Destroyed . | . . . . . Machines Disabled . | . . . . . Actions | -11 -10 -10 -10 -9 --------- Run | Yrd Mat Min Exi Min Total 2263 | 25 1124 371 452 291 Wait 209 | . 71 36 2 100 Move 1925 | 20 957 317 447 184 Hop . | . . . . . Pick Up 19 | 1 13 3 . 2 Fast Attach 10 | 1 7 1 1 . Attach 4 | . 1 . . 3 Detach 3 | . 2 . 1 . Swap 15 | . 10 4 . 1 Drop 10 | . 9 . 1 . Fire 50 | 3 39 8 . . Melee . | . . . . . Ram . | . . . . . Kick . | . . . . . Crush 18 | . 15 2 . 1 Escape Stasis . | . . . . . Rewire . | . . . . . Trap . | . . . . . Miscellaneous . | . . . . . Route ------- -11/Scrapyard -10/Materials (discovered 5 exits: [*Mat x3] / [*Min] / *Sub) -10/Mines (discovered 4 exits: [*Mat x2] / *Exi / Sub) -10/Exiles -9/Mines (discovered 1 exit: [*Mat]) History --------- Turn | Location | Event 1 | -11/Scrapyard | Discovered new exit (range 3) 36 | -11/Scrapyard | Entered Materials 107 | -10/Materials | Discovered new exit (range 11) 318 | -10/Materials | Build established: Mutant 318 | -10/Materials | Discovered new exit (range 15) 703 | -10/Materials | Discovered new exit (range 12) 708 | -10/Materials | Discovered new exit (range 6) 931 | -10/Materials | Discovered new exit (range 8) 1952 | -10/Materials | Entered Mines 2042 | -10/Mines | Discovered new exit (range 10) 2162 | -10/Mines | Identified exit to Subcaves 2641 | -10/Mines | Discovered new exit (range 10) 3009 | -10/Mines | Deemed a non-threat by the Exiles lab entrance 3009 | -10/Mines | Discovered new exit (range 5) 3030 | -10/Mines | Entered Exiles 3030 | -10/Exiles | Found Exiles lab abandoned 3030 | -10/Exiles | Accompanied by 2 allies 3060 | -10/Exiles | Led the pair of lost Derelicts to a safe place 4427 | -10/Exiles | Discovered new exit (range 14) 4465 | -10/Exiles | Entered Mines 4472 | -9/Mines | Received a Rocket Launcher from a helpful Derelict 4960 | -9/Mines | Discovered new exit (range 6) 5093 | -9/Mines | Assembled infested the area 5098 | -9/Mines | Assisted by a Guerilla fighting off Assembled 5132 | -9/Mines | Core integrity fell below 50% 5134 | -9/Mines | Learned location of Storage (-8) 5140 | -9/Mines | Core integrity fell below 20% 5147 | -9/Mines | Destroyed by D-53 Grenadier with Mini Grenade Launcher Last Messages --------------- 05131_ Lgt. Treads destroyed. 05132_ C-30 ARC bursts open, deploying its payload. 05132_ D-53 Grenadier unfolds itself. 05133_ System corrupted: Matter fused (-6). 05133_ as-36297 destroyed. 05133_ as-80108 destroyed. 05133_ as-59273 destroyed. 05133_ Assault Rifle destroyed. 05134_ A derelict emerges from the shadows: "Are any of them following you? I'm here trying to lose some heat after our second raid on Storage failed. Whatever you do stay away from that place, they've tightened security following our previous successful raids." World map updated: -8/Storage. 05136_ I0-30L(g): "We scattered so the Unaware couldn't effectively use their advantage in numbers, and I suggest you do the same." 05136_ I0-30L(g) slips back into the shadows. 05138_ The unstable cave ceiling collapses. 05138_ Assault Rifle destroyed. 05140_ Com. Wheel destroyed. 05145_ The unstable cave ceiling collapses. Map ----- +----------------------------------------------------+ | ??????????????????????????????????????????????? | | ??????????????????????????????????????????????? | | ??????????????????????????????????????????????? | | ??????????????????????????????????????????????? | | ??????????????????????????????????????????????? | | ??????????????????????????????????????????????? | | ??????????????????????????????????????????????? | | ??????????????????????????????????????????????? | | ??????????????????????????????????????????????? | | ??????????????????????????????????????????????? | | ??????????????????????????????????????????????? | | ??????????????????????????????????????????????? | | ??????????????????????????????????????????????? | | ??????????????????????????????????????????????? | | ??????????????????????????????????????????????? | | ??????????????????????????????????????????????? | | ??????????????????????????????????????????????? | | ??????????????????????????????????????????????? | | ??????????????????##??????????????????????????? | | ??????????????????# ######????????????????????? | | ??????????????????# ##???????????????????? | | ??????????????????? ######??????????????? | | ???????????????????# ? ??????????????? | | ????????????????#$## #?? #????#?? ????? ? | | ????????????????# ##? ###? #? ? ? | | ???????? ##### @ ## ## # ?? | | ???????? =%! # ?? | | ???????# |*$%a ???? | | ???????? ####= # ##??????? | | ???????????????# ##????????# | | ???????????????### ! #?????????# | | ?????????????????## d #?????????# | | ??????????????????### #????????## | | ????????????????????## d ##???????## | | ?????????????????????###### ##????????# | | ??????????????????????????# #?????????# | | ??????????????????????????###% #??????????# | | ????????????????????????????# #??????????## | | ????????????????????????????# #???????????# | | ????????????????????????????# #???????????# | | ????????????????????????????# #???????????## | | ????????????????#####???????# #????????##### | | ???????????????## ???????# #???????## ## | | ???????????????? ??????# #??###### # | | ????????????????? ?????## #?## # | | ??????????????????# ?????# #?# # | | ???????????????????# #????# ##### | | ???????????????????# ##??# ## ### | | ???????????????????# ##?# ## ###### ##?? | | ????????????????????# ### ## #????## #??? | +----------------------------------------------------+ Best States ------------- Heat Dissipation 25 Energy Generation 14 Energy Capacity 260 Matter Stores 300 Matter Capacity 300 Sight Range 16 Terrain Scan Density 10 Armor Coverage 80 Evasion (%) 55 Recoil Reduction 2 Item Schematics ----------------- None Robot Schematics ------------------ None Fabricated ------------ Nothing Repaired ---------- Nothing Alien Tech Used ----------------- None Achievements -------------- None Challenges ------------ None Game ------ Seed MiniChainRipteeth Manual? 0 Play Time 00:22:11 Cumulative 182.1 hours Start 2024.11.16 @ 16:23:41 End 2024.11.16 @ 16:43:22 Sessions 1 Manual Loads 0 Difficulty Rogue Special Mode None Game No. 48 Rogue 42 Adventurer 6 Explorer 0 Win Type - Total 4 Types 3/0/1/0/0/0/0/0/0 Lore% 47 Gallery% 66 Achievement% 56 Wizard Run 0 Options --------- Layout 0 ASCII 0 Keyboard 1 Movement Vi Keybinds 0 Fullscreen 2 Font 24/Tamsyn Map View 76x56 Zoom Use 0% Tactical HUD 1 Map Filters NONE Filters NONE Steam 1 RUN: 6b8d7b6b-ba10-4086-a1b0-9f213a88d998